[Event "Titled Tuesday Blitz June 13 Late 2023"]
[White "Karas, Marek"]
[Black "Altman, Joshua"]
[WhiteFideId "14928558"]
[BlackFideId "426210"]
[WhiteElo "2229"]
[BlackElo "2028"]
[Result "1-0"]
[Round "5"]
[TimeControl "180+2"]
[Date "2023.06.13"]
[WhiteClock "0:00:28"]
[BlackClock "0:00:00"]
[Board "84"]

1. Na3 {[%clk 0:02:59]}  e5 {[%clk 0:02:58]} 2. c3 {[%clk 0:02:52]}  Nf6 {[%clk 0:02:57]} 3. g3 {[%clk 0:02:50]}  Nc6 {[%clk 0:02:56]} 4. Bg2 {[%clk 0:02:49]}  Bxa3 {[%clk 0:02:52]} 5. bxa3 {[%clk 0:02:48]}  d5 {[%clk 0:02:52]} 6. d3 {[%clk 0:02:45]}  O-O {[%clk 0:02:52]} 7. Nf3 {[%clk 0:02:45]}  h6 {[%clk 0:02:50]} 8. O-O {[%clk 0:02:45]}  Bf5 {[%clk 0:02:46]} 9. Nd2 {[%clk 0:02:42]}  Qd7 {[%clk 0:02:44]} 10. Rb1 {[%clk 0:02:39]}  b6 {[%clk 0:02:44]} 11. c4 {[%clk 0:02:36]}  Bh3 {[%clk 0:02:41]} 12. cxd5 {[%clk 0:02:34]}  Bxg2 {[%clk 0:02:40]} 13. Kxg2 {[%clk 0:02:23]}  Qxd5+ {[%clk 0:02:39]} 14. Kg1 {[%clk 0:02:22]}  Qxa2 {[%clk 0:02:10]} 15. Nc4 {[%clk 0:02:21]}  Nd4 {[%clk 0:01:55]} 16. Bb2 {[%clk 0:02:11]}  b5 {[%clk 0:01:31]} 17. Ra1 {[%clk 0:02:03]}  Qb3 {[%clk 0:01:28]} 18. Bxd4 {[%clk 0:01:31]}  bxc4 {[%clk 0:01:26]} 19. Qxb3 {[%clk 0:01:29]}  cxb3 {[%clk 0:01:26]} 20. Bxe5 {[%clk 0:01:30]}  Rfe8 {[%clk 0:01:21]} 21. Bxf6 {[%clk 0:01:27]}  gxf6 {[%clk 0:01:22]} 22. e3 {[%clk 0:01:27]}  a5 {[%clk 0:01:17]} 23. a4 {[%clk 0:01:25]}  Red8 {[%clk 0:01:12]} 24. d4 {[%clk 0:01:25]}  Rab8 {[%clk 0:01:12]} 25. Rfb1 {[%clk 0:01:24]}  Rb4 {[%clk 0:01:10]} 26. Ra3 {[%clk 0:01:22]}  Rdb8 {[%clk 0:01:04]} 27. Kf1 {[%clk 0:01:21]}  Kf8 {[%clk 0:01:03]} 28. Ke2 {[%clk 0:01:22]}  Ke7 {[%clk 0:01:04]} 29. Kd3 {[%clk 0:01:22]}  Kd6 {[%clk 0:01:03]} 30. Kc3 {[%clk 0:01:22]}  b2 {[%clk 0:01:03]} 31. Ra2 {[%clk 0:01:21]}  Kd5 {[%clk 0:00:43]} 32. Rbxb2 {[%clk 0:01:21]}  Rc4+ {[%clk 0:00:43]} 33. Kd3 {[%clk 0:01:20]}  Rxb2 {[%clk 0:00:43]} 34. Rxb2 {[%clk 0:01:21]}  Rxa4 {[%clk 0:00:44]} 35. Rb5+ {[%clk 0:01:20]}  Ke6 {[%clk 0:00:41]} 36. Rc5 {[%clk 0:01:18]}  Kd6 {[%clk 0:00:39]} 37. Rf5 {[%clk 0:01:14]}  Ke6 {[%clk 0:00:38]} 38. Rh5 {[%clk 0:01:14]}  Ra2 {[%clk 0:00:38]} 39. f4 {[%clk 0:01:10]}  a4 {[%clk 0:00:35]} 40. Ke4 {[%clk 0:01:01]}  a3 {[%clk 0:00:33]} 41. Ra5 {[%clk 0:01:00]}  Rxh2 {[%clk 0:00:32]} 42. Ra6+ {[%clk 0:00:59]}  Ke7 {[%clk 0:00:31]} 43. Rxa3 {[%clk 0:00:59]}  Rg2 {[%clk 0:00:31]} 44. Kf3 {[%clk 0:00:58]}  Rc2 {[%clk 0:00:32]} 45. Ra5 {[%clk 0:00:56]}  Ke6 {[%clk 0:00:27]} 46. Rh5 {[%clk 0:00:56]}  c5 {[%clk 0:00:23]} 47. d5+ {[%clk 0:00:56]}  Kd6 {[%clk 0:00:23]} 48. e4 {[%clk 0:00:54]}  Rc3+ {[%clk 0:00:22]} 49. Kg4 {[%clk 0:00:55]}  c4 {[%clk 0:00:22]} 50. Rxh6 {[%clk 0:00:53]}  Ke7 {[%clk 0:00:21]} 51. Kf5 {[%clk 0:00:48]}  Rxg3 {[%clk 0:00:21]} 52. Rxf6 {[%clk 0:00:48]}  Rg6 {[%clk 0:00:18]} 53. e5 {[%clk 0:00:33]}  c3 {[%clk 0:00:11]} 54. d6+ {[%clk 0:00:32]}  Ke8 {[%clk 0:00:12]} 55. d7+ {[%clk 0:00:32]}  Ke7 {[%clk 0:00:10]} 56. Rxf7+ {[%clk 0:00:31]}  Kd8 {[%clk 0:00:00]} 57. e6 {[%clk 0:00:28]} 1-0


[Site "https://www.chess.com"]

[Event "Titled Tuesday Blitz June 13 Late 2023"]
[White "Ammar, Sedrani"]
[Black "Vovk, Orest"]
[WhiteFideId "9312331"]
[BlackFideId "14113490"]
[WhiteElo "2115"]
[BlackElo "2215"]
[Result "1-0"]
[Round "5"]
[TimeControl "180+2"]
[Date "2023.06.13"]
[WhiteClock "0:00:40"]
[BlackClock "0:00:00"]
[Board "87"]

1. e4 {[%clk 0:02:58]}  g5 {[%clk 0:02:58]} 2. d4 {[%clk 0:02:57]}  h6 {[%clk 0:02:56]} 3. c4 {[%clk 0:02:56]}  Bg7 {[%clk 0:02:55]} 4. Nc3 {[%clk 0:02:57]}  c5 {[%clk 0:02:53]} 5. d5 {[%clk 0:02:57]}  Bxc3+ {[%clk 0:02:52]} 6. bxc3 {[%clk 0:02:56]}  d6 {[%clk 0:02:53]} 7. f4 {[%clk 0:02:56]}  Qa5 {[%clk 0:02:52]} 8. Qb3 {[%clk 0:02:53]}  Nf6 {[%clk 0:02:42]} 9. e5 {[%clk 0:02:52]}  Ne4 {[%clk 0:02:42]} 10. Bd3 {[%clk 0:02:50]}  Qxc3+ {[%clk 0:02:35]} 11. Qxc3 {[%clk 0:02:50]}  Nxc3 {[%clk 0:02:35]} 12. exd6 {[%clk 0:02:50]}  exd6 {[%clk 0:02:34]} 13. Bb2 {[%clk 0:02:49]}  Nxd5 {[%clk 0:02:23]} 14. Bxh8 {[%clk 0:02:48]}  Nxf4 {[%clk 0:02:23]} 15. Be2 {[%clk 0:02:41]}  Nxg2+ {[%clk 0:02:19]} 16. Kf2 {[%clk 0:02:40]}  Nf4 {[%clk 0:02:18]} 17. Bc3 {[%clk 0:02:40]}  Be6 {[%clk 0:02:06]} 18. Nf3 {[%clk 0:02:39]}  Nxe2 {[%clk 0:02:04]} 19. Kxe2 {[%clk 0:02:39]}  Bxc4+ {[%clk 0:02:04]} 20. Kf2 {[%clk 0:02:40]}  Nc6 {[%clk 0:01:58]} 21. Rhe1+ {[%clk 0:02:38]}  Kf8 {[%clk 0:01:41]} 22. Bf6 {[%clk 0:02:24]}  Be6 {[%clk 0:01:31]} 23. Rad1 {[%clk 0:02:18]}  d5 {[%clk 0:01:18]} 24. Ne5 {[%clk 0:02:01]}  Nxe5 {[%clk 0:01:17]} 25. Bxe5 {[%clk 0:02:00]}  Rd8 {[%clk 0:01:08]} 26. Rb1 {[%clk 0:01:55]}  b6 {[%clk 0:01:04]} 27. a4 {[%clk 0:01:54]}  d4 {[%clk 0:00:54]} 28. a5 {[%clk 0:01:46]}  bxa5 {[%clk 0:00:45]} 29. Bc7 {[%clk 0:01:45]}  Rd7 {[%clk 0:00:38]} 30. Bxa5 {[%clk 0:01:44]}  c4 {[%clk 0:00:34]} 31. Red1 {[%clk 0:01:32]}  c3 {[%clk 0:00:30]} 32. Rb8+ {[%clk 0:01:26]}  Kg7 {[%clk 0:00:28]} 33. Rc1 {[%clk 0:01:18]}  Rd5 {[%clk 0:00:20]} 34. Bb4 {[%clk 0:01:12]}  a5 {[%clk 0:00:19]} 35. Bf8+ {[%clk 0:01:12]}  Kg6 {[%clk 0:00:20]} 36. Ba3 {[%clk 0:01:06]}  Bf5 {[%clk 0:00:16]} 37. Rb6+ {[%clk 0:01:03]}  Kh5 {[%clk 0:00:12]} 38. Rc6 {[%clk 0:01:03]}  c2 {[%clk 0:00:10]} 39. Rc5 {[%clk 0:01:02]}  Rxc5 {[%clk 0:00:09]} 40. Bxc5 {[%clk 0:01:01]}  d3 {[%clk 0:00:09]} 41. Ke3 {[%clk 0:01:01]}  Kg4 {[%clk 0:00:07]} 42. Kd2 {[%clk 0:01:01]}  Kh3 {[%clk 0:00:07]} 43. Bd6 {[%clk 0:01:01]}  Be4 {[%clk 0:00:05]} 44. Ra1 {[%clk 0:00:54]}  f5 {[%clk 0:00:05]} 45. Rxa5 {[%clk 0:00:54]}  f4 {[%clk 0:00:04]} 46. Ra4 {[%clk 0:00:50]}  Bg6 {[%clk 0:00:00]} 47. Ra6 {[%clk 0:00:40]} 1-0


[Site "https://www.chess.com"]

[Event "Titled Tuesday Blitz June 13 Late 2023"]
[White "Mortazavi, Ali"]
[Black "Lalanne, Pablo"]
[WhiteFideId "401323"]
[BlackFideId "112151"]
[WhiteElo "2339"]
[BlackElo "2120"]
[Result "1-0"]
[Round "5"]
[TimeControl "180+2"]
[Date "2023.06.13"]
[WhiteClock "0:00:24"]
[BlackClock "0:00:00"]
[Board "88"]

1. Nf3 {[%clk 0:02:58]}  c5 {[%clk 0:02:59]} 2. g3 {[%clk 0:02:59]}  d5 {[%clk 0:02:59]} 3. Bg2 {[%clk 0:03:00]}  e6 {[%clk 0:02:59]} 4. O-O {[%clk 0:03:01]}  Nf6 {[%clk 0:03:00]} 5. d3 {[%clk 0:03:01]}  Nc6 {[%clk 0:03:00]} 6. Nbd2 {[%clk 0:03:02]}  Be7 {[%clk 0:03:00]} 7. e4 {[%clk 0:03:03]}  O-O {[%clk 0:02:55]} 8. Re1 {[%clk 0:03:04]}  b5 {[%clk 0:02:49]} 9. exd5 {[%clk 0:03:04]}  exd5 {[%clk 0:02:49]} 10. d4 {[%clk 0:03:02]}  Qb6 {[%clk 0:02:33]} 11. Nb3 {[%clk 0:01:58]}  c4 {[%clk 0:02:22]} 12. Nbd2 {[%clk 0:01:56]}  Bg4 {[%clk 0:02:13]} 13. c3 {[%clk 0:01:56]}  Bd6 {[%clk 0:02:02]} 14. Nf1 {[%clk 0:01:55]}  Ne4 {[%clk 0:01:53]} 15. h3 {[%clk 0:01:41]}  Bh5 {[%clk 0:01:53]} 16. Ne3 {[%clk 0:01:40]}  Ne7 {[%clk 0:01:49]} 17. Nxd5 {[%clk 0:01:32]}  Nxd5 {[%clk 0:01:45]} 18. Rxe4 {[%clk 0:01:32]}  Rfe8 {[%clk 0:01:42]} 19. Qe1 {[%clk 0:01:20]}  f5 {[%clk 0:01:37]} 20. Rxe8+ {[%clk 0:01:17]}  Rxe8 {[%clk 0:01:38]} 21. Ne5 {[%clk 0:01:17]}  Nf6 {[%clk 0:01:24]} 22. Bf4 {[%clk 0:01:01]}  h6 {[%clk 0:01:16]} 23. Qd2 {[%clk 0:00:58]}  Qc7 {[%clk 0:01:13]} 24. Re1 {[%clk 0:00:41]}  g5 {[%clk 0:01:08]} 25. Bxg5 {[%clk 0:00:41]}  hxg5 {[%clk 0:01:07]} 26. Qxg5+ {[%clk 0:00:42]}  Qg7 {[%clk 0:01:07]} 27. Qxf5 {[%clk 0:00:43]}  Bf7 {[%clk 0:00:53]} 28. Kh2 {[%clk 0:00:41]}  Bg6 {[%clk 0:00:48]} 29. Qf3 {[%clk 0:00:38]}  Rf8 {[%clk 0:00:39]} 30. Qc6 {[%clk 0:00:38]}  Bxe5 {[%clk 0:00:33]} 31. Rxe5 {[%clk 0:00:38]}  Nd7 {[%clk 0:00:14]} 32. Rg5 {[%clk 0:00:33]}  Nf6 {[%clk 0:00:13]} 33. Qxb5 {[%clk 0:00:33]}  Kh8 {[%clk 0:00:12]} 34. f4 {[%clk 0:00:29]}  Nh7 {[%clk 0:00:11]} 35. Rg4 {[%clk 0:00:29]}  Qf7 {[%clk 0:00:09]} 36. Qd5 {[%clk 0:00:28]}  Qxd5 {[%clk 0:00:09]} 37. Bxd5 {[%clk 0:00:28]}  Bf5 {[%clk 0:00:09]} 38. Rh4 {[%clk 0:00:28]}  Kg7 {[%clk 0:00:08]} 39. g4 {[%clk 0:00:28]}  Nf6 {[%clk 0:00:07]} 40. Bf3 {[%clk 0:00:27]}  Be4 {[%clk 0:00:07]} 41. Be2 {[%clk 0:00:27]}  Nd5 {[%clk 0:00:07]} 42. f5 {[%clk 0:00:26]}  Ne3 {[%clk 0:00:06]} 43. g5 {[%clk 0:00:24]}  Rb8 {[%clk 0:00:06]} 44. Rxe4 {[%clk 0:00:25]}  Nxf5 {[%clk 0:00:06]} 45. Bxc4 {[%clk 0:00:23]}  Rxb2+ {[%clk 0:00:06]} 46. Re2 {[%clk 0:00:24]}  Rb1 {[%clk 0:00:00]} 47. Bd3 {[%clk 0:00:24]} 1-0


[Site "https://www.chess.com"]

[Event "Titled Tuesday Blitz June 13 Late 2023"]
[White "Zomorrodian, Eilia"]
[Black "Pein, Jonathan"]
[WhiteFideId "12551805"]
[BlackFideId "417092"]
[WhiteElo "2069"]
[BlackElo "2151"]
[Result "1-0"]
[Round "5"]
[TimeControl "180+2"]
[Date "2023.06.13"]
[WhiteClock "0:00:37"]
[BlackClock "0:00:00"]
[Board "91"]

1. b4 {[%clk 0:03:00]}  a5 {[%clk 0:02:57]} 2. b5 {[%clk 0:03:00]}  e5 {[%clk 0:02:55]} 3. Bb2 {[%clk 0:02:59]}  d6 {[%clk 0:02:53]} 4. e3 {[%clk 0:03:00]}  g6 {[%clk 0:02:53]} 5. Nf3 {[%clk 0:03:00]}  Bg7 {[%clk 0:02:53]} 6. Be2 {[%clk 0:03:01]}  f5 {[%clk 0:02:53]} 7. O-O {[%clk 0:03:01]}  Nh6 {[%clk 0:02:53]} 8. c4 {[%clk 0:03:00]}  O-O {[%clk 0:02:53]} 9. d4 {[%clk 0:03:00]}  e4 {[%clk 0:02:53]} 10. Nfd2 {[%clk 0:03:01]}  Be6 {[%clk 0:02:50]} 11. Nc3 {[%clk 0:03:00]}  Nd7 {[%clk 0:02:49]} 12. f3 {[%clk 0:02:52]}  exf3 {[%clk 0:02:46]} 13. Bxf3 {[%clk 0:02:53]}  Qg5 {[%clk 0:02:38]} 14. Qe2 {[%clk 0:02:37]}  Rae8 {[%clk 0:02:37]} 15. Rae1 {[%clk 0:02:35]}  Bf7 {[%clk 0:02:22]} 16. Qd3 {[%clk 0:02:21]}  Ng4 {[%clk 0:02:01]} 17. e4 {[%clk 0:02:03]}  Bh6 {[%clk 0:01:32]} 18. Bc1 {[%clk 0:01:49]}  Qh4 {[%clk 0:01:02]} 19. h3 {[%clk 0:01:37]}  Nge5 {[%clk 0:01:01]} 20. dxe5 {[%clk 0:01:25]}  Nxe5 {[%clk 0:01:01]} 21. Qd4 {[%clk 0:01:15]}  Qg3 {[%clk 0:00:52]} 22. Qf2 {[%clk 0:01:10]}  Qxf2+ {[%clk 0:00:40]} 23. Rxf2 {[%clk 0:01:11]}  Nd3 {[%clk 0:00:40]} 24. Rfe2 {[%clk 0:00:59]}  Nxe1 {[%clk 0:00:33]} 25. Rxe1 {[%clk 0:01:00]}  c6 {[%clk 0:00:15]} 26. bxc6 {[%clk 0:00:56]}  bxc6 {[%clk 0:00:16]} 27. Rd1 {[%clk 0:00:50]}  Be3+ {[%clk 0:00:14]} 28. Kh1 {[%clk 0:00:50]}  fxe4 {[%clk 0:00:14]} 29. Ndxe4 {[%clk 0:00:45]}  Bxc1 {[%clk 0:00:14]} 30. Nf6+ {[%clk 0:00:45]}  Kg7 {[%clk 0:00:11]} 31. Nxe8+ {[%clk 0:00:45]}  Rxe8 {[%clk 0:00:11]} 32. Rxc1 {[%clk 0:00:45]}  Bxc4 {[%clk 0:00:11]} 33. Ne4 {[%clk 0:00:46]}  d5 {[%clk 0:00:07]} 34. Nd6 {[%clk 0:00:45]}  Rb8 {[%clk 0:00:06]} 35. Nxc4 {[%clk 0:00:45]}  dxc4 {[%clk 0:00:07]} 36. Rxc4 {[%clk 0:00:46]}  Rb2 {[%clk 0:00:05]} 37. a4 {[%clk 0:00:46]}  Ra2 {[%clk 0:00:03]} 38. Bxc6 {[%clk 0:00:46]}  Kf6 {[%clk 0:00:03]} 39. Bb5 {[%clk 0:00:46]}  Ke5 {[%clk 0:00:03]} 40. Kh2 {[%clk 0:00:47]}  g5 {[%clk 0:00:03]} 41. Rc5+ {[%clk 0:00:47]}  Ke4 {[%clk 0:00:03]} 42. Bc6+ {[%clk 0:00:46]}  Kf4 {[%clk 0:00:02]} 43. Rxa5 {[%clk 0:00:47]}  h5 {[%clk 0:00:03]} 44. Ra8 {[%clk 0:00:45]}  h4 {[%clk 0:00:03]} 45. Rf8+ {[%clk 0:00:44]}  Ke3 {[%clk 0:00:03]} 46. Rf3+ {[%clk 0:00:44]}  Kd4 {[%clk 0:00:03]} 47. Bb5 {[%clk 0:00:45]}  Ke5 {[%clk 0:00:02]} 48. Re3+ {[%clk 0:00:45]}  Kf4 {[%clk 0:00:03]} 49. Rf3+ {[%clk 0:00:45]}  Ke5 {[%clk 0:00:03]} 50. Bd7 {[%clk 0:00:45]}  Ra1 {[%clk 0:00:03]} 51. Rf5+ {[%clk 0:00:45]}  Ke4 {[%clk 0:00:02]} 52. Rxg5 {[%clk 0:00:44]}  Rd1 {[%clk 0:00:03]} 53. Bb5 {[%clk 0:00:44]}  Rd6 {[%clk 0:00:04]} 54. Rg4+ {[%clk 0:00:45]}  Kf5 {[%clk 0:00:04]} 55. Rxh4 {[%clk 0:00:45]}  Kg5 {[%clk 0:00:05]} 56. Rg4+ {[%clk 0:00:46]}  Kh5 {[%clk 0:00:06]} 57. Rg3 {[%clk 0:00:46]}  Rd4 {[%clk 0:00:06]} 58. Rf3 {[%clk 0:00:47]}  Kh4 {[%clk 0:00:06]} 59. a5 {[%clk 0:00:47]}  Rd8 {[%clk 0:00:04]} 60. a6 {[%clk 0:00:47]}  Rg8 {[%clk 0:00:04]} 61. g3+ {[%clk 0:00:43]}  Kh5 {[%clk 0:00:03]} 62. a7 {[%clk 0:00:42]}  Ra8 {[%clk 0:00:03]} 63. Ra3 {[%clk 0:00:42]}  Kg5 {[%clk 0:00:03]} 64. Bc6 {[%clk 0:00:42]}  Rf8 {[%clk 0:00:02]} 65. a8=Q {[%clk 0:00:42]}  Rf2+ {[%clk 0:00:02]} 66. Kg1 {[%clk 0:00:42]}  Rf6 {[%clk 0:00:02]} 67. Qg8+ {[%clk 0:00:42]}  Kh6 {[%clk 0:00:00]} 68. Ra4 {[%clk 0:00:37]} 1-0


[Site "https://www.chess.com"]

[Event "Titled Tuesday Blitz June 13 Late 2023"]
[White "Jaskolka, Tomasz"]
[Black "Nikologorsky, Matfei"]
[WhiteFideId "1170791"]
[BlackFideId "24102474"]
[WhiteElo "2155"]
[BlackElo "2153"]
[Result "1-0"]
[Round "5"]
[TimeControl "180+2"]
[Date "2023.06.13"]
[WhiteClock "0:00:08"]
[BlackClock "0:00:21"]
[Board "94"]

1. d4 {[%clk 0:03:00]}  Nf6 {[%clk 0:02:58]} 2. Nc3 {[%clk 0:03:00]}  d5 {[%clk 0:02:58]} 3. Bf4 {[%clk 0:03:00]}  a6 {[%clk 0:02:58]} 4. e3 {[%clk 0:02:57]}  c5 {[%clk 0:02:56]} 5. Nf3 {[%clk 0:02:51]}  Nc6 {[%clk 0:02:55]} 6. a3 {[%clk 0:02:49]}  cxd4 {[%clk 0:02:54]} 7. exd4 {[%clk 0:02:49]}  Bg4 {[%clk 0:02:52]} 8. Be2 {[%clk 0:02:48]}  e6 {[%clk 0:02:40]} 9. O-O {[%clk 0:02:48]}  Bd6 {[%clk 0:02:35]} 10. Ne5 {[%clk 0:02:46]}  Bxe2 {[%clk 0:02:35]} 11. Nxe2 {[%clk 0:02:46]}  O-O {[%clk 0:02:32]} 12. c3 {[%clk 0:02:36]}  Nh5 {[%clk 0:02:23]} 13. Nxc6 {[%clk 0:02:31]}  bxc6 {[%clk 0:02:21]} 14. Bxd6 {[%clk 0:02:28]}  Qxd6 {[%clk 0:02:22]} 15. Qd2 {[%clk 0:02:27]}  c5 {[%clk 0:02:19]} 16. b4 {[%clk 0:02:20]}  cxd4 {[%clk 0:02:17]} 17. Qxd4 {[%clk 0:02:10]}  Rfc8 {[%clk 0:02:15]} 18. Rfd1 {[%clk 0:02:08]}  Qc7 {[%clk 0:02:07]} 19. Rac1 {[%clk 0:02:03]}  Nf6 {[%clk 0:02:05]} 20. Ng3 {[%clk 0:02:00]}  Qc4 {[%clk 0:02:01]} 21. Qe5 {[%clk 0:01:53]}  Ra7 {[%clk 0:01:54]} 22. Rd4 {[%clk 0:01:49]}  Qc7 {[%clk 0:01:54]} 23. Qg5 {[%clk 0:01:44]}  h6 {[%clk 0:01:50]} 24. Qd2 {[%clk 0:01:38]}  Qb6 {[%clk 0:01:37]} 25. c4 {[%clk 0:01:28]}  dxc4 {[%clk 0:01:38]} 26. Rdxc4 {[%clk 0:01:24]}  Rxc4 {[%clk 0:01:39]} 27. Rxc4 {[%clk 0:01:24]}  Rd7 {[%clk 0:01:39]} 28. Qc2 {[%clk 0:01:22]}  g6 {[%clk 0:01:31]} 29. h3 {[%clk 0:01:21]}  Nd5 {[%clk 0:01:23]} 30. Ne4 {[%clk 0:01:12]}  Rd8 {[%clk 0:01:20]} 31. Rc6 {[%clk 0:00:57]}  Qd4 {[%clk 0:01:19]} 32. Rxa6 {[%clk 0:00:43]}  Nf4 {[%clk 0:01:18]} 33. Rc6 {[%clk 0:00:31]}  Qa1+ {[%clk 0:01:16]} 34. Kh2 {[%clk 0:00:31]}  Qxa3 {[%clk 0:01:15]} 35. b5 {[%clk 0:00:23]}  Qa1 {[%clk 0:01:01]} 36. Rc8 {[%clk 0:00:20]}  Rxc8 {[%clk 0:00:59]} 37. Qxc8+ {[%clk 0:00:21]}  Kg7 {[%clk 0:00:59]} 38. Qc3+ {[%clk 0:00:14]}  Qxc3 {[%clk 0:00:59]} 39. Nxc3 {[%clk 0:00:15]}  Nd3 {[%clk 0:00:54]} 40. Ne4 {[%clk 0:00:11]}  f5 {[%clk 0:00:50]} 41. b6 {[%clk 0:00:11]}  Nb4 {[%clk 0:00:49]} 42. Nc5 {[%clk 0:00:09]}  Nc6 {[%clk 0:00:42]} 43. Nd7 {[%clk 0:00:06]}  Na5 {[%clk 0:00:41]} 44. Nc5 {[%clk 0:00:07]}  Nc6 {[%clk 0:00:41]} 45. Nxe6+ {[%clk 0:00:07]}  Kf6 {[%clk 0:00:41]} 46. Nc5 {[%clk 0:00:06]}  Ke7 {[%clk 0:00:42]} 47. b7 {[%clk 0:00:06]}  Nb8 {[%clk 0:00:42]} 48. Kg3 {[%clk 0:00:07]}  Kd6 {[%clk 0:00:42]} 49. Nd3 {[%clk 0:00:07]}  Nc6 {[%clk 0:00:40]} 50. Nb4 {[%clk 0:00:04]}  Nb8 {[%clk 0:00:39]} 51. h4 {[%clk 0:00:04]}  Kc7 {[%clk 0:00:39]} 52. Kf4 {[%clk 0:00:04]}  Nd7 {[%clk 0:00:38]} 53. Nd5+ {[%clk 0:00:04]}  Kxb7 {[%clk 0:00:38]} 54. Ne7 {[%clk 0:00:05]}  Kc7 {[%clk 0:00:27]} 55. Nxg6 {[%clk 0:00:04]}  Kd6 {[%clk 0:00:27]} 56. Kxf5 {[%clk 0:00:05]}  Nc5 {[%clk 0:00:27]} 57. Nf4 {[%clk 0:00:04]}  Ke7 {[%clk 0:00:25]} 58. Kg6 {[%clk 0:00:03]}  Ne4 {[%clk 0:00:23]} 59. f3 {[%clk 0:00:03]}  Ng3 {[%clk 0:00:22]} 60. Kxh6 {[%clk 0:00:03]}  Kf7 {[%clk 0:00:22]} 61. Kg5 {[%clk 0:00:04]}  Kg7 {[%clk 0:00:22]} 62. Kg4 {[%clk 0:00:04]}  Nf1 {[%clk 0:00:22]} 63. g3 {[%clk 0:00:04]}  Kf6 {[%clk 0:00:21]} 64. Nh5+ {[%clk 0:00:05]}  Kg6 {[%clk 0:00:21]} 65. Nf4+ {[%clk 0:00:05]}  Kf6 {[%clk 0:00:21]} 66. Nd5+ {[%clk 0:00:06]}  Ke5 {[%clk 0:00:22]} 67. Ne7 {[%clk 0:00:03]}  Kf6 {[%clk 0:00:21]} 68. Ng8+ {[%clk 0:00:03]}  Kf7 {[%clk 0:00:20]} 69. Nh6+ {[%clk 0:00:03]}  Kg6 {[%clk 0:00:21]} 70. Nf5 {[%clk 0:00:04]}  Kf6 {[%clk 0:00:21]} 71. Nd4 {[%clk 0:00:04]}  Ne3+ {[%clk 0:00:21]} 72. Kf4 {[%clk 0:00:04]}  Ng2+ {[%clk 0:00:22]} 73. Ke4 {[%clk 0:00:04]}  Ne1 {[%clk 0:00:22]} 74. g4 {[%clk 0:00:05]}  Ng2 {[%clk 0:00:22]} 75. h5 {[%clk 0:00:04]}  Kg5 {[%clk 0:00:23]} 76. Nf5 {[%clk 0:00:05]}  Kf6 {[%clk 0:00:21]} 77. f4 {[%clk 0:00:04]}  Ne1 {[%clk 0:00:19]} 78. g5+ {[%clk 0:00:04]}  Kf7 {[%clk 0:00:19]} 79. Ne3 {[%clk 0:00:04]}  Ke6 {[%clk 0:00:18]} 80. f5+ {[%clk 0:00:04]}  Kf7 {[%clk 0:00:18]} 81. h6 {[%clk 0:00:05]}  Ke7 {[%clk 0:00:18]} 82. g6 {[%clk 0:00:05]}  Kf6 {[%clk 0:00:18]} 83. h7 {[%clk 0:00:05]}  Kg7 {[%clk 0:00:19]} 84. Ke5 {[%clk 0:00:03]}  Nf3+ {[%clk 0:00:19]} 85. Ke6 {[%clk 0:00:04]}  Ng5+ {[%clk 0:00:19]} 86. Ke7 {[%clk 0:00:04]}  Ne4 {[%clk 0:00:18]} 87. f6+ {[%clk 0:00:04]}  Nxf6 {[%clk 0:00:18]} 88. h8=Q+ {[%clk 0:00:04]}  Kxh8 {[%clk 0:00:18]} 89. Kxf6 {[%clk 0:00:05]}  Kg8 {[%clk 0:00:19]} 90. g7 {[%clk 0:00:05]}  Kh7 {[%clk 0:00:19]} 91. Kf7 {[%clk 0:00:06]}  Kh6 {[%clk 0:00:20]} 92. g8=Q {[%clk 0:00:07]}  Kh5 {[%clk 0:00:21]} 93. Qg4+ {[%clk 0:00:07]}  Kh6 {[%clk 0:00:21]} 94. Qg6# {[%clk 0:00:08]} 1-0


[Site "https://www.chess.com"]

[Event "Titled Tuesday Blitz June 13 Late 2023"]
[White "Besedes, Danilo"]
[Black "Bueno, Alfeu Junior Varela"]
[WhiteFideId "946796"]
[BlackFideId "2108879"]
[WhiteElo "2352"]
[BlackElo "2175"]
[Result "1-0"]
[Round "5"]
[TimeControl "180+2"]
[Date "2023.06.13"]
[WhiteClock "0:00:52"]
[BlackClock "0:00:10"]
[Board "95"]

1. e4 {[%clk 0:02:30]}  e6 {[%clk 0:02:58]} 2. d3 {[%clk 0:02:30]}  d5 {[%clk 0:02:57]} 3. Nd2 {[%clk 0:02:31]}  Nf6 {[%clk 0:02:57]} 4. Ngf3 {[%clk 0:02:30]}  dxe4 {[%clk 0:02:56]} 5. dxe4 {[%clk 0:02:31]}  Bc5 {[%clk 0:02:56]} 6. Bd3 {[%clk 0:02:30]}  e5 {[%clk 0:02:56]} 7. O-O {[%clk 0:02:29]}  Nc6 {[%clk 0:02:57]} 8. a3 {[%clk 0:02:26]}  a5 {[%clk 0:02:56]} 9. b3 {[%clk 0:02:25]}  Qe7 {[%clk 0:02:50]} 10. Bb2 {[%clk 0:02:25]}  O-O {[%clk 0:02:50]} 11. Nc4 {[%clk 0:02:22]}  Bg4 {[%clk 0:02:40]} 12. h3 {[%clk 0:02:22]}  Bxf3 {[%clk 0:02:36]} 13. Qxf3 {[%clk 0:02:23]}  Bd4 {[%clk 0:02:32]} 14. c3 {[%clk 0:02:23]}  Ba7 {[%clk 0:02:25]} 15. b4 {[%clk 0:02:23]}  Nd7 {[%clk 0:02:04]} 16. Rad1 {[%clk 0:02:19]}  Kh8 {[%clk 0:01:57]} 17. Ne3 {[%clk 0:02:17]}  Bxe3 {[%clk 0:01:42]} 18. Qxe3 {[%clk 0:02:13]}  axb4 {[%clk 0:01:34]} 19. cxb4 {[%clk 0:02:14]}  Nd4 {[%clk 0:01:34]} 20. Bc4 {[%clk 0:02:06]}  Nb6 {[%clk 0:01:28]} 21. Bb3 {[%clk 0:02:01]}  Nxb3 {[%clk 0:01:22]} 22. Qxb3 {[%clk 0:01:59]}  f6 {[%clk 0:01:15]} 23. Rd3 {[%clk 0:01:56]}  Qf7 {[%clk 0:01:08]} 24. Qxf7 {[%clk 0:01:53]}  Rxf7 {[%clk 0:01:09]} 25. Rfd1 {[%clk 0:01:54]}  h6 {[%clk 0:01:03]} 26. Rd8+ {[%clk 0:01:52]}  Rf8 {[%clk 0:01:03]} 27. Rxf8+ {[%clk 0:01:47]}  Rxf8 {[%clk 0:01:04]} 28. Bc1 {[%clk 0:01:38]}  Ra8 {[%clk 0:00:58]} 29. Kf1 {[%clk 0:01:36]}  Kg8 {[%clk 0:00:54]} 30. g3 {[%clk 0:01:26]}  Kf8 {[%clk 0:00:51]} 31. Be3 {[%clk 0:01:20]}  Rxa3 {[%clk 0:00:41]} 32. Rd8+ {[%clk 0:01:15]}  Ke7 {[%clk 0:00:37]} 33. Rb8 {[%clk 0:01:08]}  Nc4 {[%clk 0:00:26]} 34. Bc5+ {[%clk 0:01:05]}  Kd7 {[%clk 0:00:25]} 35. Rg8 {[%clk 0:00:58]}  g5 {[%clk 0:00:17]} 36. b5 {[%clk 0:00:53]}  Ra1+ {[%clk 0:00:14]} 37. Kg2 {[%clk 0:00:53]}  Rb1 {[%clk 0:00:12]} 38. Rg7+ {[%clk 0:00:53]}  Ke6 {[%clk 0:00:10]} 39. Re7# {[%clk 0:00:52]} 1-0


[Site "https://www.chess.com"]